[Event "Early-Titled-Tuesday-Blitz-September-26-2023"]
[Site "Chess.com"]
[Date "2023.09.26"]
[Round "5"]
[White "borocotoajua"]
[Black "stepanosinovsky"]
[Result "0-1"]
[WhiteElo "2591"]
[BlackElo "2368"]
[TimeControl "180+1"]
[EndTime "8:58:08 PDT"]
[Termination "stepanosinovsky won by resignation"]

1. d4 {[%clk 0:02:58.6]} 1... Nf6 {[%clk 0:02:55.5]} 2. Nf3 {[%clk 0:02:57.7]}
2... g6 {[%clk 0:02:56.4]} 3. c4 {[%clk 0:02:57.2]} 3... Bg7 {[%clk 0:02:56.1]}
4. g3 {[%clk 0:02:57.7]} 4... O-O {[%clk 0:02:56.7]} 5. Bg2 {[%clk 0:02:58.1]}
5... d6 {[%clk 0:02:57.2]} 6. O-O {[%clk 0:02:58.7]} 6... Nbd7 {[%clk
0:02:57.8]} 7. Qc2 {[%clk 0:02:58.2]} 7... e5 {[%clk 0:02:58.2]} 8. Rd1 {[%clk
0:02:58.8]} 8... Re8 {[%clk 0:02:55.5]} 9. Nc3 {[%clk 0:02:57.7]} 9... c6 {[%clk
0:02:43.2]} 10. e4 {[%clk 0:02:50.9]} 10... exd4 {[%clk 0:02:34]} 11. Nxd4
{[%clk 0:02:51.8]} 11... Nc5 {[%clk 0:02:28]} 12. Bf4 {[%clk 0:02:41.2]} 12...
Ng4 {[%clk 0:02:01.7]} 13. b4 {[%clk 0:01:50.5]} 13... Ne6 {[%clk 0:01:44.8]}
14. Nxe6 {[%clk 0:01:49.1]} 14... Bxe6 {[%clk 0:01:45.7]} 15. c5 {[%clk
0:01:42.6]} 15... Qf6 {[%clk 0:01:35.8]} 16. e5 {[%clk 0:01:19.5]} 16... dxe5
{[%clk 0:01:25.5]} 17. Ne4 {[%clk 0:01:17.8]} 17... Qf5 {[%clk 0:01:23.9]} 18.
Bc1 {[%clk 0:01:08.6]} 18... Bd5 {[%clk 0:00:52.6]} 19. h3 {[%clk 0:00:59.4]}
19... Nxf2 {[%clk 0:00:42.7]} 20. Qxf2 {[%clk 0:00:31.2]} 20... Bxe4 {[%clk
0:00:42.3]} 21. Qxf5 {[%clk 0:00:27]} 21... Bxf5 {[%clk 0:00:41.2]} 22. Bb2
{[%clk 0:00:27.5]} 22... Rad8 {[%clk 0:00:38.8]} 23. g4 {[%clk 0:00:26.2]} 23...
Bd3 {[%clk 0:00:36.1]} 24. b5 {[%clk 0:00:25.8]} 24... Bxb5 {[%clk 0:00:34.2]}
25. a4 {[%clk 0:00:25.5]} 25... Bd3 {[%clk 0:00:31.9]} 26. Bc3 {[%clk
0:00:25.7]} 26... f5 {[%clk 0:00:26.7]} 27. Ba5 {[%clk 0:00:25]} 27... Rd7
{[%clk 0:00:24.5]} 28. Ra3 {[%clk 0:00:25.4]} 28... e4 {[%clk 0:00:23.9]} 29.
gxf5 {[%clk 0:00:25.8]} 29... gxf5 {[%clk 0:00:23.7]} 30. Be1 {[%clk 0:00:24.9]}
30... Bd4+ {[%clk 0:00:21.6]} 31. Kh1 {[%clk 0:00:23.1]} 31... Bxc5 {[%clk
0:00:21.1]} 32. Rb3 {[%clk 0:00:20.6]} 32... b6 {[%clk 0:00:20.6]} 33. a5 {[%clk
0:00:20.6]} 33... Red8 {[%clk 0:00:20]} 34. Bh4 {[%clk 0:00:20.4]} 34... Re8
{[%clk 0:00:19.5]} 35. Bf6 {[%clk 0:00:20.3]} 35... Kf7 {[%clk 0:00:19.5]} 36.
Ba1 {[%clk 0:00:20]} 36... Red8 {[%clk 0:00:19.4]} 37. axb6 {[%clk 0:00:20.3]}
37... axb6 {[%clk 0:00:20.3]} 38. h4 {[%clk 0:00:19.1]} 38... Bc2 {[%clk
0:00:20.1]} 39. Rxd7+ {[%clk 0:00:16.8]} 39... Rxd7 {[%clk 0:00:21]} 40. Rg3
{[%clk 0:00:14.5]} 40... Rd1+ {[%clk 0:00:21.9]} 41. Kh2 {[%clk 0:00:14.7]}
41... Bd6 {[%clk 0:00:21.9]} 0-1

[Event "Early-Titled-Tuesday-Blitz-September-26-2023"]
[Site "Chess.com"]
[Date "2023.09.26"]
[Round "5"]
[White "ElenaPershina"]
[Black "vishwa_vijeta"]
[Result "0-1"]
[WhiteElo "2317"]
[BlackElo "2544"]
[TimeControl "180+1"]
[EndTime "8:58:08 PDT"]
[Termination "vishwa_vijeta won on time"]

1. e4 {[%clk 0:03:00.9]} 1... c5 {[%clk 0:02:55.1]} 2. Nf3 {[%clk 0:03:01.1]}
2... d6 {[%clk 0:02:54.8]} 3. Bb5+ {[%clk 0:03:01.4]} 3... Bd7 {[%clk
0:02:54.7]} 4. Bxd7+ {[%clk 0:03:01.9]} 4... Qxd7 {[%clk 0:02:55.6]} 5. c4
{[%clk 0:03:02]} 5... Nf6 {[%clk 0:02:55.7]} 6. Nc3 {[%clk 0:03:01.7]} 6... g6
{[%clk 0:02:56.2]} 7. d4 {[%clk 0:03:02.3]} 7... cxd4 {[%clk 0:02:57.1]} 8. Nxd4
{[%clk 0:03:02.7]} 8... Bg7 {[%clk 0:02:58]} 9. f3 {[%clk 0:03:03]} 9... O-O
{[%clk 0:02:58.6]} 10. Be3 {[%clk 0:03:03.6]} 10... Nc6 {[%clk 0:02:58.8]} 11.
O-O {[%clk 0:03:02.6]} 11... Rac8 {[%clk 0:02:59.2]} 12. Rc1 {[%clk 0:02:50.4]}
12... e6 {[%clk 0:02:57.2]} 13. Nxc6 {[%clk 0:02:24.3]} 13... bxc6 {[%clk
0:02:53.2]} 14. Qa4 {[%clk 0:02:04.4]} 14... Qb7 {[%clk 0:02:50]} 15. b3 {[%clk
0:02:01.2]} 15... a6 {[%clk 0:02:49.3]} 16. Rfd1 {[%clk 0:01:59]} 16... d5
{[%clk 0:02:34.6]} 17. exd5 {[%clk 0:01:08.6]} 17... cxd5 {[%clk 0:02:30.6]} 18.
c5 {[%clk 0:00:58.6]} 18... Nd7 {[%clk 0:02:25.3]} 19. b4 {[%clk 0:00:55.4]}
19... Ne5 {[%clk 0:02:02.6]} 20. Bd4 {[%clk 0:00:51.1]} 20... Nc4 {[%clk
0:02:02.8]} 21. Bxg7 {[%clk 0:00:49]} 21... Kxg7 {[%clk 0:02:03.7]} 22. Qb3
{[%clk 0:00:36]} 22... a5 {[%clk 0:02:02.8]} 23. a3 {[%clk 0:00:13.3]} 23...
Rxc5 {[%clk 0:01:55.5]} 24. Na4 {[%clk 0:00:09.9]} 24... Rb5 {[%clk 0:01:54]}
25. Qc3+ {[%clk 0:00:07.2]} 25... Kg8 {[%clk 0:01:53.6]} 26. Nc5 {[%clk
0:00:06.8]} 26... axb4 {[%clk 0:01:53.9]} 27. axb4 {[%clk 0:00:05.2]} 27... Qb6
{[%clk 0:01:54.2]} 28. Kh1 {[%clk 0:00:02.2]} 28... Rxc5 {[%clk 0:01:47.1]} 29.
bxc5 {[%clk 0:00:02.1]} 29... Qxc5 {[%clk 0:01:48]} 30. Qd4 {[%clk 0:00:02.4]}
30... Qa3 {[%clk 0:01:47.6]} 31. Rxc4 {[%clk 0:00:01.6]} 31... dxc4 {[%clk
0:01:47.6]} 32. Qxc4 {[%clk 0:00:02.5]} 32... Kg7 {[%clk 0:01:48.2]} 33. Qd4+
{[%clk 0:00:02.7]} 33... Kg8 {[%clk 0:01:47.7]} 34. h3 {[%clk 0:00:03.1]} 34...
Qe7 {[%clk 0:01:48]} 35. Kh2 {[%clk 0:00:03.3]} 35... e5 {[%clk 0:01:48.3]} 36.
Qd7 {[%clk 0:00:02.8]} 36... Qf6 {[%clk 0:01:48.2]} 37. Qd6 {[%clk 0:00:02.6]}
37... Qf4+ {[%clk 0:01:48.4]} 38. Kh1 {[%clk 0:00:03.1]} 38... Kg7 {[%clk
0:01:48.4]} 39. Qd2 {[%clk 0:00:03.1]} 39... Qf5 {[%clk 0:01:47.8]} 40. Qd3
{[%clk 0:00:03.2]} 40... Qg5 {[%clk 0:01:48.2]} 41. Qd2 {[%clk 0:00:03.4]} 41...
Qg3 {[%clk 0:01:48.5]} 42. Qd3 {[%clk 0:00:03.5]} 42... Rb8 {[%clk 0:01:47.2]}
43. Qd2 {[%clk 0:00:03.3]} 43... Rb6 {[%clk 0:01:43.5]} 44. Qe2 {[%clk
0:00:03.4]} 44... Qf4 {[%clk 0:01:43.1]} 45. Qd2 {[%clk 0:00:03.3]} 45... Qc4
{[%clk 0:01:39.4]} 46. Re1 {[%clk 0:00:02.6]} 46... Re6 {[%clk 0:01:36.8]} 47.
Qe2 {[%clk 0:00:02.8]} 47... Qd4 {[%clk 0:01:36]} 48. Qe4 {[%clk 0:00:02.6]}
48... Qd2 {[%clk 0:01:33.2]} 49. Qe2 {[%clk 0:00:02.6]} 49... Qd8 {[%clk
0:01:30.4]} 50. Qe4 {[%clk 0:00:02.8]} 50... f5 {[%clk 0:01:29.4]} 51. Qe2
{[%clk 0:00:03.5]} 51... Qe7 {[%clk 0:01:29]} 52. Qe3 {[%clk 0:00:03.5]} 52...
e4 {[%clk 0:01:29.1]} 53. f4 {[%clk 0:00:03.6]} 53... Rd6 {[%clk 0:01:27.2]} 54.
Kh2 {[%clk 0:00:03.6]} 54... Qf6 {[%clk 0:01:26.9]} 55. Rc1 {[%clk 0:00:03.3]}
55... Rd7 {[%clk 0:01:24.5]} 56. Rc8 {[%clk 0:00:02.5]} 56... Qd4 {[%clk
0:01:22.3]} 57. Qc1 {[%clk 0:00:02.1]} 57... e3 {[%clk 0:01:19.4]} 58. Qb1
{[%clk 0:00:01]} 58... Qxf4+ {[%clk 0:01:18.9]} 0-1

[Event "Early-Titled-Tuesday-Blitz-September-26-2023"]
[Site "Chess.com"]
[Date "2023.09.26"]
[Round "5"]
[White "scarabee43"]
[Black "crazyluzhinTh3"]
[Result "1-0"]
[WhiteElo "2777"]
[BlackElo "2511"]
[TimeControl "180+1"]
[EndTime "8:58:09 PDT"]
[Termination "scarabee43 won by resignation"]

1. d4 {[%clk 0:03:00.9]} 1... d6 {[%clk 0:02:56.2]} 2. Nf3 {[%clk 0:02:59.7]}
2... Bg4 {[%clk 0:02:56]} 3. g3 {[%clk 0:02:56.6]} 3... Nf6 {[%clk 0:02:55.4]}
4. Bg2 {[%clk 0:02:56.5]} 4... Nbd7 {[%clk 0:02:56.1]} 5. O-O {[%clk 0:02:56.3]}
5... c6 {[%clk 0:02:56.7]} 6. h3 {[%clk 0:02:53.3]} 6... Bh5 {[%clk 0:02:56]} 7.
c4 {[%clk 0:02:50.7]} 7... e5 {[%clk 0:02:55.8]} 8. Nc3 {[%clk 0:02:51.2]} 8...
Be7 {[%clk 0:02:55.6]} 9. b3 {[%clk 0:02:35.7]} 9... O-O {[%clk 0:02:48]} 10.
Bb2 {[%clk 0:02:32.6]} 10... Re8 {[%clk 0:02:47.6]} 11. dxe5 {[%clk 0:02:31]}
11... dxe5 {[%clk 0:02:47.4]} 12. Nh4 {[%clk 0:02:30.4]} 12... Bf8 {[%clk
0:02:46.6]} 13. g4 {[%clk 0:02:29.5]} 13... Bg6 {[%clk 0:02:45.2]} 14. Nxg6
{[%clk 0:02:29.6]} 14... hxg6 {[%clk 0:02:46.1]} 15. Qc2 {[%clk 0:02:29.2]}
15... Qc7 {[%clk 0:02:45.9]} 16. Rad1 {[%clk 0:02:27.2]} 16... a5 {[%clk
0:02:46.4]} 17. e3 {[%clk 0:02:23.2]} 17... Nc5 {[%clk 0:02:44]} 18. g5 {[%clk
0:02:04.7]} 18... Nfd7 {[%clk 0:02:29.5]} 19. Ne4 {[%clk 0:01:59.4]} 19... Nxe4
{[%clk 0:02:28.8]} 20. Qxe4 {[%clk 0:01:59.6]} 20... Nc5 {[%clk 0:02:28.5]} 21.
Qg4 {[%clk 0:01:58.6]} 21... Rad8 {[%clk 0:02:05.6]} 22. h4 {[%clk 0:01:57]}
22... Nd3 {[%clk 0:02:02.2]} 23. Ba1 {[%clk 0:01:53.5]} 23... Nb4 {[%clk
0:01:55.1]} 24. Qe2 {[%clk 0:01:46.1]} 24... Qc8 {[%clk 0:01:36.6]} 25. Bc3
{[%clk 0:01:38.8]} 25... Qf5 {[%clk 0:01:31.9]} 26. a3 {[%clk 0:01:37.7]} 26...
Qc2 {[%clk 0:00:59.6]} 27. Qxc2 {[%clk 0:01:31.9]} 27... Nxc2 {[%clk 0:01:00.5]}
28. Bxa5 {[%clk 0:01:28.3]} 28... Ra8 {[%clk 0:01:00.6]} 29. Bc7 {[%clk
0:01:09.8]} 29... Bxa3 {[%clk 0:00:53.3]} 30. Rd7 {[%clk 0:01:05.8]} 30... Bf8
{[%clk 0:00:40.5]} 31. Bb6 {[%clk 0:00:56.6]} 31... Rab8 {[%clk 0:00:40.4]} 32.
Ba7 {[%clk 0:00:55.9]} 32... Ra8 {[%clk 0:00:39.9]} 33. Rxb7 {[%clk 0:00:56.1]}
33... Nb4 {[%clk 0:00:40.2]} 34. Bb6 {[%clk 0:00:54.5]} 34... Rab8 {[%clk
0:00:38.4]} 35. Rxb8 {[%clk 0:00:54.3]} 35... Rxb8 {[%clk 0:00:39.3]} 36. c5
{[%clk 0:00:54.6]} 36... Na6 {[%clk 0:00:27.2]} 37. Rc1 {[%clk 0:00:53.1]} 37...
Rc8 {[%clk 0:00:15.9]} 38. Bh3 {[%clk 0:00:53]} 38... Rb8 {[%clk 0:00:12.3]} 39.
Bd7 {[%clk 0:00:53.3]} 39... Nb4 {[%clk 0:00:12]} 40. e4 {[%clk 0:00:48.6]}
40... Rb7 {[%clk 0:00:09.3]} 41. Bg4 {[%clk 0:00:48]} 41... f6 {[%clk
0:00:06.3]} 42. Be6+ {[%clk 0:00:46.2]} 42... Kh7 {[%clk 0:00:06.7]} 43. Rd1
{[%clk 0:00:44.1]} 43... Be7 {[%clk 0:00:06.6]} 44. Kg2 {[%clk 0:00:42.8]} 44...
Na6 {[%clk 0:00:05.8]} 45. Bc8 {[%clk 0:00:40.9]} 45... Nxc5 {[%clk 0:00:06.2]}
46. Bxc5 {[%clk 0:00:40.9]} 46... Rc7 {[%clk 0:00:03.5]} 47. Bxe7 {[%clk
0:00:39.7]} 47... Rxc8 {[%clk 0:00:04.1]} 48. gxf6 {[%clk 0:00:39.4]} 1-0

[Event "Early-Titled-Tuesday-Blitz-September-26-2023"]
[Site "Chess.com"]
[Date "2023.09.26"]
[Round "5"]
[White "pinguino120"]
[Black "IngOscarArdila"]
[Result "0-1"]
[WhiteElo "2211"]
[BlackElo "2388"]
[TimeControl "180+1"]
[EndTime "8:58:09 PDT"]
[Termination "IngOscarArdila won by checkmate"]

1. e4 {[%clk 0:03:00.9]} 1... e5 {[%clk 0:03:00.1]} 2. Nf3 {[%clk 0:02:58.7]}
2... Nf6 {[%clk 0:03:00.6]} 3. Nxe5 {[%clk 0:02:57.5]} 3... d6 {[%clk
0:03:01.1]} 4. Nf3 {[%clk 0:02:58.1]} 4... Nxe4 {[%clk 0:03:01.5]} 5. Nc3 {[%clk
0:02:58.8]} 5... Nxc3 {[%clk 0:03:01.9]} 6. dxc3 {[%clk 0:02:59.7]} 6... Be7
{[%clk 0:03:02.4]} 7. Be3 {[%clk 0:02:59.8]} 7... O-O {[%clk 0:03:03.3]} 8. Qd2
{[%clk 0:03:00.4]} 8... Nd7 {[%clk 0:03:03.7]} 9. O-O-O {[%clk 0:02:59.7]} 9...
Nf6 {[%clk 0:03:04.3]} 10. Bd3 {[%clk 0:02:55.6]} 10... c5 {[%clk 0:03:03.8]}
11. h4 {[%clk 0:02:42.7]} 11... b5 {[%clk 0:03:03.3]} 12. c4 {[%clk 0:02:38.7]}
12... Be6 {[%clk 0:02:59]} 13. cxb5 {[%clk 0:02:34.9]} 13... a6 {[%clk
0:02:57.1]} 14. bxa6 {[%clk 0:02:19.9]} 14... c4 {[%clk 0:02:53]} 15. Be2 {[%clk
0:01:59.3]} 15... Rxa6 {[%clk 0:02:52.7]} 16. a3 {[%clk 0:01:52.1]} 16... d5
{[%clk 0:02:46.6]} 17. Qe1 {[%clk 0:01:16.3]} 17... Bxa3 {[%clk 0:02:43.4]} 18.
bxa3 {[%clk 0:01:13]} 18... Rxa3 {[%clk 0:02:43.6]} 19. Bxc4 {[%clk 0:01:10.7]}
19... Qa8 {[%clk 0:02:40.2]} 20. Bb3 {[%clk 0:01:07.2]} 20... Ne4 {[%clk
0:02:39.7]} 21. Kb2 {[%clk 0:01:01]} 21... Rb8 {[%clk 0:01:47.2]} 22. Ra1 {[%clk
0:00:59.5]} 22... Rxa1 {[%clk 0:01:37.3]} 23. Qxa1 {[%clk 0:00:58.6]} 23... Qc6
{[%clk 0:01:37.8]} 24. Bd4 {[%clk 0:00:53.4]} 24... f6 {[%clk 0:01:34]} 25. Qa7
{[%clk 0:00:46.7]} 25... Rc8 {[%clk 0:01:24.3]} 26. Ra1 {[%clk 0:00:40]} 26...
Nd6 {[%clk 0:01:20.8]} 27. Ra6 {[%clk 0:00:37]} 27... Nc4+ {[%clk 0:01:18.6]}
28. Ka2 {[%clk 0:00:26.7]} 28... Qe8 {[%clk 0:01:15.9]} 29. Qb7 {[%clk
0:00:19.3]} 29... Rb8 {[%clk 0:01:08.9]} 30. Qc7 {[%clk 0:00:17.4]} 30... Ra8
{[%clk 0:01:05.4]} 31. Ra7 {[%clk 0:00:17.9]} 31... Rxa7+ {[%clk 0:01:04.2]} 32.
Qxa7 {[%clk 0:00:18.8]} 32... h5 {[%clk 0:00:59.9]} 33. Bxc4 {[%clk 0:00:19.2]}
33... dxc4 {[%clk 0:00:59.2]} 34. c3 {[%clk 0:00:20.1]} 34... Bd5 {[%clk
0:00:58.5]} 35. Qa3 {[%clk 0:00:18.8]} 35... Qe2+ {[%clk 0:00:57.2]} 36. Qb2
{[%clk 0:00:19.2]} 36... Qd1 {[%clk 0:00:54.8]} 37. Qd2 {[%clk 0:00:19.1]} 37...
Qb3+ {[%clk 0:00:54.1]} 38. Ka1 {[%clk 0:00:19.8]} 38... Be4 {[%clk 0:00:53.6]}
39. Qb2 {[%clk 0:00:19.6]} 39... Qd1+ {[%clk 0:00:53.5]} 40. Ka2 {[%clk
0:00:20.1]} 40... Qa4+ {[%clk 0:00:53.4]} 41. Qa3 {[%clk 0:00:20.7]} 41... Bb1+
{[%clk 0:00:49.1]} 42. Kb2 {[%clk 0:00:18.6]} 42... Qc2+ {[%clk 0:00:49.1]} 43.
Ka1 {[%clk 0:00:19.1]} 43... Qd1 {[%clk 0:00:47.9]} 44. Kb2 {[%clk 0:00:08.9]}
44... Bd3 {[%clk 0:00:40.6]} 45. Qa8+ {[%clk 0:00:04.1]} 45... Kh7 {[%clk
0:00:39.3]} 46. Ka2 {[%clk 0:00:04.2]} 46... Qb3+ {[%clk 0:00:38.7]} 47. Ka1
{[%clk 0:00:04.4]} 47... Qb1# {[%clk 0:00:39]} 0-1

[Event "Early-Titled-Tuesday-Blitz-September-26-2023"]
[Site "Chess.com"]
[Date "2023.09.26"]
[Round "5"]
[White "Zohid6"]
[Black "Journey_to_GrandMaster_YT"]
[Result "1-0"]
[WhiteElo "2779"]
[BlackElo "2601"]
[TimeControl "180+1"]
[EndTime "8:58:10 PDT"]
[Termination "Zohid6 won by resignation"]

1. d4 {[%clk 0:02:59.7]} 1... d6 {[%clk 0:03:00.9]} 2. Nc3 {[%clk 0:02:58.7]}
2... Nf6 {[%clk 0:03:01.4]} 3. e4 {[%clk 0:02:58.9]} 3... e5 {[%clk 0:03:02.1]}
4. dxe5 {[%clk 0:02:58.4]} 4... dxe5 {[%clk 0:03:03]} 5. Qxd8+ {[%clk
0:02:58.9]} 5... Kxd8 {[%clk 0:03:03.9]} 6. Bc4 {[%clk 0:02:59.6]} 6... Ke8
{[%clk 0:03:03.9]} 7. Nf3 {[%clk 0:02:59.5]} 7... Bd6 {[%clk 0:03:03.1]} 8. Be3
{[%clk 0:02:56.7]} 8... Nbd7 {[%clk 0:03:02.4]} 9. O-O-O {[%clk 0:02:56.2]} 9...
a6 {[%clk 0:03:02.5]} 10. Bd3 {[%clk 0:02:54.8]} 10... b5 {[%clk 0:03:00.7]} 11.
a4 {[%clk 0:02:55.1]} 11... b4 {[%clk 0:03:00.7]} 12. Ne2 {[%clk 0:02:55.3]}
12... Bb7 {[%clk 0:02:54.7]} 13. Ng3 {[%clk 0:02:52.6]} 13... g6 {[%clk
0:02:54.5]} 14. b3 {[%clk 0:02:52.6]} 14... Ng4 {[%clk 0:02:50.2]} 15. Nd2
{[%clk 0:02:50.5]} 15... Nxe3 {[%clk 0:02:49.8]} 16. fxe3 {[%clk 0:02:51.4]}
16... Nc5 {[%clk 0:02:34.9]} 17. Nc4 {[%clk 0:02:50.7]} 17... Nxd3+ {[%clk
0:02:34.6]} 18. cxd3 {[%clk 0:02:51.4]} 18... Rd8 {[%clk 0:02:31.4]} 19. Rhf1
{[%clk 0:02:51.3]} 19... Ke7 {[%clk 0:02:30.4]} 20. Kc2 {[%clk 0:02:50.7]} 20...
f6 {[%clk 0:02:27.7]} 21. Rd2 {[%clk 0:02:43.9]} 21... h5 {[%clk 0:02:17]} 22.
h4 {[%clk 0:02:43.9]} 22... Bc8 {[%clk 0:02:04.1]} 23. Rdf2 {[%clk 0:02:37.5]}
23... Rhf8 {[%clk 0:01:57]} 24. Na5 {[%clk 0:02:33.5]} 24... Bd7 {[%clk
0:01:54.2]} 25. Nc4 {[%clk 0:02:31.9]} 25... Bc6 {[%clk 0:01:48]} 26. Ne2 {[%clk
0:02:30.3]} 26... Rf7 {[%clk 0:01:42.6]} 27. Rg1 {[%clk 0:02:28.2]} 27... f5
{[%clk 0:01:39.1]} 28. exf5 {[%clk 0:02:25.4]} 28... gxf5 {[%clk 0:01:39.5]} 29.
Ng3 {[%clk 0:02:25.1]} 29... Ke6 {[%clk 0:01:30.4]} 30. e4 {[%clk 0:02:14.7]}
30... Bc5 {[%clk 0:01:23.4]} 31. exf5+ {[%clk 0:02:09.2]} 31... Ke7 {[%clk
0:01:21.6]} 32. Nxe5 {[%clk 0:01:50.1]} 32... Rf6 {[%clk 0:01:02.7]} 33. Re2
{[%clk 0:01:44.5]} 33... Kf8 {[%clk 0:00:47.1]} 34. Rf1 {[%clk 0:01:39]} 34...
Be8 {[%clk 0:00:43.5]} 35. Ne4 {[%clk 0:01:35.3]} 35... Be7 {[%clk 0:00:33.8]}
36. Nxf6 {[%clk 0:01:31.2]} 36... Bxf6 {[%clk 0:00:34.7]} 37. Rf4 {[%clk
0:01:29.5]} 37... Rd5 {[%clk 0:00:26.8]} 38. Ng6+ {[%clk 0:01:29.4]} 38... Kf7
{[%clk 0:00:27.3]} 39. Rxb4 {[%clk 0:01:18.4]} 39... Bd7 {[%clk 0:00:21.7]} 40.
Nf4 {[%clk 0:01:17.8]} 40... Rxf5 {[%clk 0:00:21.5]} 41. g3 {[%clk 0:01:18.4]}
41... Be5 {[%clk 0:00:14.2]} 42. Rc4 {[%clk 0:01:16.6]} 42... Bd6 {[%clk
0:00:14]} 43. Kd2 {[%clk 0:01:06.9]} 43... a5 {[%clk 0:00:14.2]} 44. Ke3 {[%clk
0:01:05.7]} 44... Re5+ {[%clk 0:00:13.9]} 45. Kf2 {[%clk 0:01:05.7]} 45... Rf5
{[%clk 0:00:12.4]} 46. Re3 {[%clk 0:01:04.2]} 46... Bc5 {[%clk 0:00:09.6]} 47.
d4 {[%clk 0:01:03.1]} 47... Bd6 {[%clk 0:00:09.9]} 48. Rf3 {[%clk 0:01:03.7]}
48... Bc8 {[%clk 0:00:09.6]} 49. Nxh5 {[%clk 0:01:02]} 49... Rxf3+ {[%clk
0:00:09.3]} 50. Kxf3 {[%clk 0:01:02.9]} 50... Bb7+ {[%clk 0:00:09.6]} 51. Kf2
{[%clk 0:01:03.2]} 51... Bd5 {[%clk 0:00:10.3]} 52. Rc3 {[%clk 0:01:03.6]} 52...
Kg6 {[%clk 0:00:09.5]} 53. Nf4+ {[%clk 0:01:03.5]} 1-0

[Event "Early-Titled-Tuesday-Blitz-September-26-2023"]
[Site "Chess.com"]
[Date "2023.09.26"]
[Round "5"]
[White "Kaiyrbekov"]
[Black "Jaka_Brilej"]
[Result "1-0"]
[WhiteElo "1631"]
[BlackElo "2506"]
[TimeControl "180+1"]
[EndTime "8:58:11 PDT"]
[Termination "Kaiyrbekov won by checkmate"]

1. e4 {[%clk 0:02:32.4]} 1... e6 {[%clk 0:02:56.4]} 2. d4 {[%clk 0:02:31.1]}
2... d5 {[%clk 0:02:57]} 3. e5 {[%clk 0:02:29.9]} 3... c5 {[%clk 0:02:56.8]} 4.
c3 {[%clk 0:02:12.3]} 4... Nc6 {[%clk 0:02:56.9]} 5. Nf3 {[%clk 0:02:09.6]} 5...
Qb6 {[%clk 0:02:55.9]} 6. a3 {[%clk 0:02:07.6]} 6... Nh6 {[%clk 0:02:54.4]} 7.
b4 {[%clk 0:02:05.2]} 7... cxd4 {[%clk 0:02:54.1]} 8. Bxh6 {[%clk 0:02:01.9]}
8... gxh6 {[%clk 0:02:54.5]} 9. cxd4 {[%clk 0:02:00.8]} 9... Bg7 {[%clk
0:02:51.9]} 10. Nc3 {[%clk 0:01:57.5]} 10... O-O {[%clk 0:02:49]} 11. b5 {[%clk
0:01:55.6]} 11... Ne7 {[%clk 0:02:46.5]} 12. Bd3 {[%clk 0:01:52.7]} 12... f6
{[%clk 0:02:41.5]} 13. O-O {[%clk 0:01:47.1]} 13... f5 {[%clk 0:02:33.7]} 14.
Ne2 {[%clk 0:01:43.4]} 14... Ng6 {[%clk 0:02:32.6]} 15. h4 {[%clk 0:01:39.7]}
15... h5 {[%clk 0:02:24.1]} 16. Qd2 {[%clk 0:01:39.2]} 16... Bd7 {[%clk
0:02:22.7]} 17. a4 {[%clk 0:01:35.4]} 17... Qd8 {[%clk 0:02:19]} 18. Nf4 {[%clk
0:01:14.4]} 18... Nxh4 {[%clk 0:02:06.3]} 19. Nxh4 {[%clk 0:01:15.3]} 19... Qxh4
{[%clk 0:02:05.9]} 20. g3 {[%clk 0:01:15]} 20... Qg5 {[%clk 0:02:04]} 21. Kg2
{[%clk 0:01:12.5]} 21... h4 {[%clk 0:01:52.6]} 22. Rh1 {[%clk 0:01:12.2]} 22...
hxg3 {[%clk 0:01:52.2]} 23. fxg3 {[%clk 0:01:07.7]} 23... Qe7 {[%clk 0:01:38.3]}
24. Rh2 {[%clk 0:00:57.8]} 24... Be8 {[%clk 0:01:38.9]} 25. Rg1 {[%clk 0:00:52]}
25... Bg6 {[%clk 0:01:38.2]} 26. Kh1 {[%clk 0:00:49.5]} 26... Rac8 {[%clk
0:01:09.7]} 27. g4 {[%clk 0:00:46.5]} 27... Rf7 {[%clk 0:01:09.6]} 28. Nxg6
{[%clk 0:00:43.2]} 28... hxg6 {[%clk 0:01:09.5]} 29. gxf5 {[%clk 0:00:42.6]}
29... exf5 {[%clk 0:00:33.9]} 30. Rxg6 {[%clk 0:00:41.5]} 30... Qa3 {[%clk
0:00:34]} 31. Rg1 {[%clk 0:00:34.6]} 31... Kf8 {[%clk 0:00:23.5]} 32. Rh7 {[%clk
0:00:28.9]} 32... Qc3 {[%clk 0:00:20.5]} 33. Qe3 {[%clk 0:00:26.7]} 33... f4
{[%clk 0:00:19.5]} 34. Qh3 {[%clk 0:00:22.6]} 34... f3 {[%clk 0:00:14.8]} 35.
Rhxg7 {[%clk 0:00:21]} 35... Rxg7 {[%clk 0:00:14.1]} 36. Qh8+ {[%clk 0:00:20]}
36... Ke7 {[%clk 0:00:08.5]} 37. Qxg7+ {[%clk 0:00:20.9]} 37... Kd8 {[%clk
0:00:07.4]} 38. Qf6+ {[%clk 0:00:20.6]} 38... Kc7 {[%clk 0:00:07.8]} 39. Qd6#
{[%clk 0:00:18.4]} 1-0